bitfinex/quotes_BTCUSD_20250414
["timestamp","ask_amount","ask_price","bid_price","bid_amount"]
[1744633873991,0.59002885,84966.0,84965.0,0.002]
[1744633874371,0.59002885,84966.0,84952.0,0.011771]
[1744633874372,0.247183,84957.0,84952.0,0.011771]
[1744633874610,0.14068,84956.0,84954.0,0.235421]
[1744633876013,0.14068,84956.0,84955.0,0.235418]
[1744633876333,0.14068,84956.0,84955.0,0.24277176]
[1744633877085,0.14068,84956.0,84955.0,0.3636133]
[1744633877510,0.14068,84956.0,84955.0,0.3656133]
[1744633877926,0.14068,84956.0,84955.0,0.3676133]
[1744633879017,0.14068,84956.0,84955.0,0.01135376]
[1744633879983,0.14068,84956.0,84955.0,0.24677176]
[1744633880939,0.14068,84956.0,84955.0,0.3676133]
[1744633881183,0.14068,84956.0,84955.0,0.24677176]
[1744633881766,0.376095,84956.0,84955.0,0.01135376]
[1744633882330,0.235404,84961.0,84957.0,0.247181]
[1744633882531,0.376126,84960.0,84958.0,0.00735376]
[1744633882963,0.376126,84960.0,84957.0,0.247181]
[1744633883185,0.235408,84959.0,84957.0,0.01177]
[1744633883695,0.387896,84960.0,84957.0,0.249182]
[1744633883927,0.387896,84960.0,84958.0,0.00735373]
[1744633884270,0.387896,84960.0,84958.0,0.23541]
[1744633884469,0.15249,84960.0,84958.0,0.23541]
[1744633884682,0.14072,84960.0,84959.0,0.235407]
[1744633885067,0.376125,84960.0,84958.0,0.001]
[1744633885263,0.235407,84959.0,84958.0,0.001]
[1744633885463,0.23541,84958.0,84957.0,0.002]
[1744633885663,0.23541,84958.0,84955.0,0.01177]
[1744633885664,0.235411,84958.0,84956.0,0.01177]
[1744633885867,0.235411,84958.0,84951.0,0.235427]
[1744633885868,0.01177,84955.0,84952.0,0.247195]
[1744633886066,0.247188,84955.0,84952.0,0.247195]
[1744633886409,0.247188,84955.0,84953.0,0.24277693]
[1744633886609,0.247183,84957.0,84954.0,0.23542]
[1744633886814,0.247183,84957.0,84955.0,0.235418]
[1744633887065,0.24718,84959.0,84955.0,0.01177]
[1744633887215,0.01177,84957.0,84956.0,0.00735393]
[1744633887411,0.247183,84957.0,84956.0,0.00735393]
[1744633888434,0.247183,84957.0,84956.0,0.00935393]
[1744633889707,0.247183,84957.0,84956.0,0.01135393]
[1744633890663,0.247183,84957.0,84956.0,0.004]
[1744633891750,0.60172385,84957.0,84956.0,0.004]
[1744633892538,0.35177,84957.0,84950.0,0.011771]
[1744633892711,0.247195,84954.0,84950.0,0.247201]
[1744633892943,0.575413,84957.0,84956.0,0.002]
[1744633893217,0.235412,84958.0,84956.0,0.002]
[1744633893437,0.380133,84957.0,84956.0,0.002]
[1744633893569,0.376133,84957.0,84956.0,0.002]
[1744633894166,0.011771,84952.0,84948.0,0.011771]
[1744633894409,0.2472,84951.0,84949.0,0.00735409]
[1744633894824,0.2472,84951.0,84950.0,0.00735409]
[1744633896045,0.2482,84951.0,84950.0,0.00735409]
[1744633896242,0.235432,84950.0,84948.0,0.01912509]
[1744633896707,0.235432,84950.0,84949.0,0.00735409]
[1744633897817,0.23544,84947.0,84946.0,0.00735409]
[1744633898463,0.235438,84948.0,84946.0,0.00735409]
[1744633898642,0.235415,84957.0,84945.0,0.0008448]
[1744633898643,0.34,84967.0,84949.0,0.011771]
[1744633898838,0.011771,84951.0,84947.0,0.24279409]
[1744633899051,0.235434,84950.0,84947.0,0.24279409]
[1744633899308,0.235434,84950.0,84948.0,0.00735409]
[1744633899731,0.235435,84949.0,84948.0,0.00735409]
[1744633901738,0.247206,84949.0,84946.0,0.25456935]
[1744633901938,0.011771,84949.0,84947.0,0.24279435]
[1744633902141,0.247208,84949.0,84947.0,0.00735435]
[1744633902336,0.247208,84949.0,84948.0,0.00735435]
[1744633903182,0.247206,84949.0,84948.0,0.00735435]
[1744633903547,0.247206,84949.0,84946.0,0.011772]
[1744633904885,0.247206,84949.0,84946.0,0.012772]
[1744633905092,0.247206,84949.0,84946.0,0.001]
[1744633905286,0.247206,84949.0,84946.0,0.002]
[1744633905502,0.23544,84947.0,84946.0,0.002]
[1744633906475,0.23544,84947.0,84946.0,0.001]
[1744633906712,0.23544,84947.0,84945.0,0.0008448]
[1744633906713,0.235443,84946.0,84945.0,0.0008448]
[1744633907107,0.247209,84948.0,84945.0,0.0008448]
[1744633907108,0.228829,84948.0,84945.0,0.0008448]
[1744633907321,0.24719,84955.0,84945.0,0.0008448]
[1744633907322,0.011771,84954.0,84951.0,0.235429]
[1744633907489,0.011771,84954.0,84949.0,0.235435]
[1744633907728,0.2472,84952.0,84949.0,0.235435]
[1744633907877,0.23543,84951.0,84949.0,0.235435]
[1744633908078,0.23543,84951.0,84947.0,0.011772]
[1744633908079,0.235435,84949.0,84947.0,0.011772]
[1744633908534,0.247203,84950.0,84947.0,0.247212]
[1744633909028,0.235438,84948.0,84946.0,0.001]
[1744633909227,0.247209,84948.0,84945.0,0.0018448]
[1744633909438,0.247209,84948.0,84945.0,0.2362898]
[1744633909633,0.247209,84948.0,84945.0,0.2480618]
[1744633909792,0.01196498,84957.0,84947.0,0.236439]
[1744633909993,0.235422,84954.0,84950.0,0.247203]
[1744633910224,0.247193,84954.0,84950.0,0.247203]
[1744633910737,0.247193,84954.0,84951.0,0.235427]
[1744633910899,0.377025,84953.0,84950.0,0.247203]
[1744633911110,0.1416,84953.0,84952.0,0.235427]
[1744633911323,0.34,84965.0,84962.0,0.011769]
[1744633911515,0.235399,84962.0,84958.0,0.247178]
[1744633911745,0.235415,84957.0,84953.0,0.011771]
[1744633911918,0.247192,84954.0,84950.0,0.011771]
[1744633912295,0.235418,84955.0,84951.0,0.2472]
[1744633912497,0.235418,84955.0,84952.0,0.00735414]
[1744633912906,0.235424,84953.0,84952.0,0.00735414]
[1744633913042,0.235436,84949.0,84946.0,0.24721]
[1744633913243,0.011771,84949.0,84946.0,0.247214]
[1744633913447,0.011771,84950.0,84947.0,0.25456434]
[1744633913944,0.235438,84948.0,84947.0,0.00735434]
[1744633914147,0.011771,84948.0,84945.0,0.0008448]
[1744633914468,0.247203,84950.0,84946.0,0.011772]
[1744633914786,0.247203,84950.0,84947.0,0.25456437]
[1744633914992,0.011771,84950.0,84947.0,0.00735437]
[1744633915189,0.235436,84949.0,84948.0,0.00735437]
[1744633916634,0.23544,84947.0,84946.0,0.00735437]
[1744633917037,0.011771,84949.0,84946.0,0.00735437]
[1744633917246,0.23544,84947.0,84946.0,0.00735437]
[1744633917440,0.235443,84946.0,84945.0,0.0008448]
[1744633918176,0.235443,84946.0,84945.0,0.00819959]
[1744633919405,0.235443,84946.0,84945.0,0.00919959]
[1744633919832,0.235443,84946.0,84945.0,0.01019959]
[1744633920026,0.011771,84948.0,84945.0,0.01019959]
[1744633920261,0.247211,84948.0,84946.0,0.00735479]
[1744633920441,0.23544,84947.0,84946.0,0.00735479]
[1744633921026,0.011771,84948.0,84946.0,0.00735479]
[1744633921340,0.23544,84947.0,84946.0,0.00835479]
[1744633921967,0.23544,84947.0,84946.0,0.00935479]
[1744633922945,0.23544,84947.0,84946.0,0.002]
[1744633923970,0.235443,84946.0,84945.0,0.0008448]
[1744633924853,0.002,84947.0,84945.0,0.0008448]
[1744633925066,0.1416,84946.0,84945.0,0.0008448]
[1744633925267,0.1426,84946.0,84945.0,0.0008448]
[1744633925713,0.1426,84946.0,84945.0,0.2362908]
[1744633925915,0.1426,84946.0,84945.0,0.0008448]
[1744633926151,0.378043,84946.0,84945.0,0.0008448]
[1744633926573,0.1426,84946.0,84945.0,0.2362908]
[1744633927536,0.1426,84946.0,84945.0,0.24364571]
[1744633927743,0.001,84946.0,84945.0,0.24364571]
[1744633928939,0.001,84946.0,84945.0,0.29314571]
[1744633930684,0.0011,84946.0,84945.0,0.29314571]
[1744633935018,0.0011,84946.0,84945.0,0.24364571]
[1744633935784,0.0011,84946.0,84945.0,0.2362908]
[1744633937133,0.151891,84953.0,84952.0,0.01718]
[1744633937359,0.14012,84953.0,84952.0,0.01718]
[1744633937745,0.14012,84953.0,84952.0,0.252607]
[1744633938189,0.375544,84953.0,84952.0,0.01718]
[1744633938556,0.718544,84953.0,84952.0,0.01718]
[1744633938757,0.85392639,84953.0,84952.0,0.01718]
[1744633939232,0.85392639,84953.0,84938.0,0.0008446]
[1744633939233,0.58998385,84946.0,84938.0,0.0008446]
[1744633939460,0.84168999,84946.0,84938.0,0.0008446]
[1744633939926,0.85059133,84946.0,84938.0,0.0008446]
[1744633940730,0.85459133,84946.0,84938.0,0.0008446]
[1744633941275,0.85759133,84946.0,84938.0,0.0008446]
[1744633941482,0.97831981,84946.0,84938.0,0.0008446]
[1744633942031,0.235463,84939.0,84938.0,4e-07]
[1744633942167,0.59000885,84937.0,84936.0,1e-06]
[1744633942505,0.92927499,84937.0,84936.0,1e-06]
[1744633942856,0.63822285,84932.0,84931.0,7.8e-07]
[1744633943056,0.75906439,84932.0,84931.0,7.8e-07]
[1744633944291,0.76206439,84932.0,84931.0,7.8e-07]
[1744633945510,0.76406439,84932.0,84931.0,7.8e-07]
[1744633946129,0.75906439,84932.0,84931.0,7.8e-07]
[1744633946332,0.81425823,84932.0,84931.0,7.8e-07]
[1744633946527,0.82125823,84932.0,84931.0,7.8e-07]
[1744633946938,0.82125823,84932.0,84921.0,0.002845]
[1744633946939,0.28531,84922.0,84921.0,5.8e-07]
[1744633947234,0.90085239,84922.0,84921.0,5.8e-07]
[1744633947851,1.07148087,84922.0,84921.0,5.8e-07]
[1744633948022,0.95075239,84922.0,84921.0,5.8e-07]
[1744633948352,0.9815468,84922.0,84921.0,5.8e-07]
[1744633948651,0.63978685,84909.0,84908.0,7.038e-05]
[1744633948888,0.71092839,84909.0,84908.0,7.038e-05]
[1744633949604,0.722557,84909.0,84908.0,7.038e-05]
[1744633949868,0.862717,84909.0,84908.0,7.038e-05]
[1744633950458,0.864717,84909.0,84908.0,7.038e-05]
[1744633951411,0.865717,84909.0,84908.0,7.038e-05]
[1744633953584,0.864481,84909.0,84908.0,7.038e-05]
[1744633954631,0.724321,84909.0,84908.0,7.038e-05]
[1744633954838,0.864521,84909.0,84908.0,7.038e-05]
[1744633960612,0.74367946,84909.0,84908.0,7.038e-05]
[1744633961706,0.74303946,84909.0,84908.0,7.038e-05]
[1744633961912,0.74103946,84909.0,84908.0,7.038e-05]
[1744633962244,0.58893861,84909.0,84908.0,7.038e-05]
[1744633962445,0.72749861,84909.0,84908.0,7.038e-05]
[1744633963329,0.72549861,84909.0,84908.0,7.038e-05]
[1744633963496,0.72649861,84909.0,84908.0,7.038e-05]
[1744633963701,0.72649861,84909.0,84908.0,0.00107038]
[1744633963916,0.72649861,84909.0,84908.0,0.23661938]
[1744633963917,0.001,84909.0,84908.0,0.23661938]
[1744633964123,0.001,84909.0,84908.0,0.28251938]
[1744633964325,0.001,84909.0,84908.0,0.32771938]
[1744633965564,0.001,84909.0,84908.0,0.32671938]
[1744633965918,0.001,84909.0,84908.0,0.32871938]
[1744633966121,0.13956,84917.0,84908.0,0.32871938]
[1744633966270,0.13956,84917.0,84916.0,0.235526]
[1744633967078,0.23547,84937.0,84932.0,0.235482]
[1744633967290,0.235483,84932.0,84930.0,0.0481]
[1744633967525,0.34,84931.0,84930.0,0.0481]
[1744633967765,0.34,84931.0,84928.0,0.0478]
[1744633967766,0.58713653,84931.0,84928.0,0.0478]
[1744633967972,0.247272,84927.0,84923.0,0.061275]
[1744633968176,0.58713853,84931.0,84926.0,0.247272]
[1744633968418,0.24976,84933.0,84932.0,0.235482]
[1744633969350,0.1102,84933.0,84932.0,0.235482]
[1744633969888,0.1112,84933.0,84932.0,0.235482]
[1744633970299,0.1102,84933.0,84932.0,0.235482]
[1744633970504,0.1102,84933.0,84932.0,0.236482]
[1744633971124,0.00882322,84937.0,84932.0,0.236482]
[1744633971125,0.00882322,84937.0,84934.0,0.011773]
[1744633971331,0.59890399,84938.0,84935.0,0.235473]
[1744633971860,0.25890399,84938.0,84936.0,0.23547]
[1744633972056,0.25890399,84938.0,84935.0,0.247246]
[1744633972272,0.001,84937.0,84935.0,0.247246]
[1744633972901,0.25890399,84938.0,84935.0,0.247246]
[1744633973141,0.25990399,84938.0,84935.0,0.247246]
[1744633973609,0.235469,84937.0,84936.0,0.0457]
[1744633974537,0.25990399,84938.0,84936.0,0.0457]
[1744633974652,0.01266399,84938.0,84937.0,0.235468]
[1744633975072,0.01166399,84938.0,84937.0,0.235468]
[1744633975268,0.001,84937.0,84936.0,0.0457]
[1744633975730,0.001,84937.0,84936.0,0.281171]
[1744633976094,0.14056,84937.0,84936.0,0.281171]
[1744633976305,0.13956,84937.0,84936.0,0.281171]
[1744633976509,0.13956,84937.0,84936.0,0.328771]
[1744633978147,0.151333,84937.0,84933.0,0.011773]
[1744633978478,0.247251,84934.0,84932.0,0.235481]
[1744633978679,0.247251,84934.0,84931.0,0.296358]
[1744633979122,0.13956,84937.0,84934.0,0.011773]
[1744633979380,0.14056,84937.0,84936.0,0.235471]
[1744633979770,0.13956,84937.0,84936.0,0.235471]
[1744633981680,0.12117064,84937.0,84936.0,0.235471]
[1744633981879,0.12117064,84937.0,84936.0,0.236471]
[1744633983171,0.12117064,84937.0,84936.0,0.001]
[1744633983645,0.0008454,84943.0,84940.0,0.247233]
[1744633983871,0.0008454,84943.0,84942.0,0.280754]
[1744633985493,0.0008454,84943.0,84942.0,0.281754]
[1744633985734,0.0018454,84943.0,84942.0,0.281754]
[1744633986202,0.0008454,84943.0,84942.0,0.281754]
[1744633987083,0.0009454,84943.0,84942.0,0.281754]
[1744633991338,0.2363974,84943.0,84942.0,0.001]
[1744633991769,0.7159174,84943.0,84942.0,0.001]
[1744633992969,0.7169174,84943.0,84942.0,0.001]
[1744633993180,0.7169174,84943.0,84942.0,0.0503]
[1744633993417,0.1414654,84943.0,84942.0,0.0493]
[1744633993677,0.0029454,84943.0,84942.0,0.333754]
[1744633994033,0.0019454,84943.0,84942.0,0.333754]
[1744633994656,0.0009454,84943.0,84942.0,0.333754]
[1744633995006,0.0019454,84943.0,84942.0,0.333754]
[1744633995410,0.0009454,84943.0,84942.0,0.335754]
[1744633995792,0.0009454,84943.0,84942.0,0.45659554]
[1744633998045,0.0009454,84943.0,84942.0,0.45459554]
[1744633998584,0.0009454,84943.0,84942.0,0.45659554]
[1744633999322,0.0009454,84943.0,84942.0,0.45859554]
[1744633999931,0.0009454,84943.0,84942.0,0.46259554]
[1744634014289,0.0009454,84943.0,84942.0,0.46994939]
[1744634014504,0.0009454,84943.0,84942.0,0.46794939]
[1744634014901,0.0009454,84943.0,84942.0,0.47094939]
[1744634015423,0.0009454,84943.0,84942.0,0.46794939]
[1744634015932,0.0009454,84943.0,84942.0,0.46494939]
[1744634016126,0.0009454,84943.0,84942.0,0.46994939]
[1744634018036,0.0009454,84943.0,84942.0,0.46694939]
[1744634018394,0.0009454,84943.0,84942.0,0.46994939]
[1744634019500,0.0009454,84943.0,84942.0,0.46494939]
[1744634019724,0.0009454,84943.0,84942.0,0.46894939]
[1744634027243,0.0009454,84943.0,84942.0,0.46159554]
[1744634032092,0.0009454,84943.0,84942.0,0.46894934]
[1744634034033,0.0009454,84943.0,84942.0,0.46159554]
[1744634035556,0.0009454,84943.0,84942.0,0.46894934]
[1744634039291,0.0009454,84943.0,84942.0,0.46159554]
[1744634040340,4e-07,84943.0,84942.0,0.46894932]
[1744634042945,4e-07,84943.0,84942.0,0.46194932]
[1744634043117,4e-07,84943.0,84942.0,0.46594932]
[1744634043441,4e-07,84943.0,84942.0,0.46494932]
[1744634043654,4e-07,84943.0,84942.0,0.37364932]
[1744634043847,4e-07,84943.0,84942.0,0.37064932]
[1744634044022,4e-07,84943.0,84942.0,0.36364932]
[1744634044225,4e-07,84943.0,84942.0,0.37364932]
[1744634044862,4e-07,84943.0,84942.0,0.36964932]
[1744634046446,4e-07,84943.0,84942.0,0.36564932]
[1744634046707,4e-07,84943.0,84942.0,0.36864932]
[1744634051410,4e-07,84943.0,84942.0,0.24780778]
[1744634052439,0.2817524,84943.0,84942.0,0.01235378]
[1744634052640,0.6217524,84943.0,84942.0,0.005]
[1744634053050,0.6217524,84943.0,84942.0,0.003]
[1744634053650,0.6217524,84943.0,84942.0,0.002]
[1744634053877,0.6217524,84943.0,84927.0,0.011774]
[1744634053878,0.235491,84929.0,84927.0,0.011774]
[1744634054051,0.011774,84930.0,84927.0,0.011774]
[1744634054308,0.011774,84928.0,84924.0,0.011775]
[1744634054495,0.011774,84930.0,84926.0,0.011774]
[1744634054637,0.011774,84930.0,84928.0,0.235492]
[1744634055100,0.235494,84928.0,84924.0,0.011775]
[1744634055399,0.011774,84930.0,84926.0,0.247273]
[1744634055963,0.13708,84937.0,84936.0,0.235471]
[1744634056373,0.13708,84937.0,84935.0,0.235474]
[1744634056702,0.13708,84937.0,84936.0,0.235471]
[1744634057868,0.13708,84937.0,84934.0,0.011773]
[1744634057869,4e-07,84943.0,84942.0,0.235454]
[1744634060120,0.0030004,84943.0,84942.0,0.235454]
[1744634060698,0.0020004,84943.0,84942.0,0.235454]
[1744634060904,0.0030004,84943.0,84942.0,0.235454]
[1744634061583,0.0030004,84943.0,84942.0,0.40599554]
[1744634061784,0.0030004,84943.0,84942.0,0.41334995]
[1744634062452,0.0020004,84943.0,84942.0,0.41334995]
[1744634062893,4e-07,84943.0,84942.0,0.41334995]
[1744634063094,0.0010004,84943.0,84942.0,0.41334995]
[1744634065811,4e-07,84943.0,84942.0,0.41334995]
[1744634069965,4e-07,84943.0,84942.0,0.46074995]
[1744634071872,4e-07,84943.0,84942.0,0.46174995]
[1744634072618,4e-07,84943.0,84942.0,0.47309907]
[1744634074256,4e-07,84943.0,84942.0,0.81309907]
[1744634074461,4e-07,84943.0,84942.0,1.23179907]
[1744634074661,4e-07,84943.0,84942.0,1.36887907]
[1744634075032,4e-07,84943.0,84942.0,1.36687907]
[1744634075577,4e-07,84943.0,84942.0,1.36987907]
[1744634075784,4e-07,84943.0,84942.0,1.36587907]
[1744634076098,4e-07,84943.0,84942.0,1.38087907]
[1744634076254,4e-07,84943.0,84942.0,1.37152995]
[1744634077379,4e-07,84943.0,84942.0,1.23444995]
[1744634077597,4e-07,84943.0,84942.0,1.37152995]
[1744634078101,4e-07,84943.0,84942.0,1.38041607]
[1744634082273,4e-07,84943.0,84942.0,1.38974478]
[1744634082625,4e-07,84943.0,84942.0,1.38085866]
[1744634084450,4e-07,84943.0,84942.0,1.24377866]
[1744634084631,4e-07,84943.0,84942.0,1.38189866]
[1744634085936,4e-07,84943.0,84942.0,1.39090562]
[1744634087360,4e-07,84943.0,84942.0,1.39911545]
[1744634088319,4e-07,84943.0,84942.0,1.39090562]
[1744634088520,4e-07,84943.0,84942.0,1.38189866]
[1744634088750,4e-07,84943.0,84942.0,1.24377866]
[1744634088917,4e-07,84943.0,84942.0,1.28479866]
[1744634089119,4e-07,84943.0,84942.0,0.94479866]
[1744634090689,4e-07,84943.0,84942.0,0.52609866]
[1744634091272,4e-07,84943.0,84942.0,0.51109866]
[1744634091509,4e-07,84943.0,84942.0,0.51509866]
[1744634091714,4e-07,84943.0,84942.0,0.52109866]
[1744634092277,4e-07,84943.0,84942.0,0.38297866]
[1744634095521,4e-07,84943.0,84942.0,0.77137866]
[1744634096317,4e-07,84943.0,84942.0,0.77959665]
[1744634096529,4e-07,84943.0,84942.0,1.19829665]
[1744634103502,4e-07,84943.0,84942.0,1.20695156]
[1744634103703,4e-07,84943.0,84942.0,1.27189241]
[1744634104393,4e-07,84943.0,84942.0,1.26489241]
[1744634104649,4e-07,84943.0,84942.0,1.25935156]
[1744634104837,4e-07,84943.0,84942.0,1.25069665]
[1744634105037,4e-07,84943.0,84942.0,1.24169665]
[1744634105252,4e-07,84943.0,84942.0,1.24336794]
[1744634105544,4e-07,84943.0,84942.0,1.23936794]
[1744634105744,4e-07,84943.0,84942.0,1.24436794]
[1744634105888,4e-07,84943.0,84942.0,1.23614995]
[1744634106361,4e-07,84943.0,84942.0,1.23114995]
[1744634106544,4e-07,84943.0,84942.0,1.23614995]
[1744634107426,4e-07,84943.0,84942.0,1.22514995]
[1744634107838,4e-07,84943.0,84942.0,1.23014995]
[1744634108245,4e-07,84943.0,84942.0,1.23514995]
[1744634110338,4e-07,84943.0,84942.0,1.13734995]
[1744634111082,4e-07,84943.0,84942.0,1.12734995]
[1744634111458,4e-07,84943.0,84942.0,1.13234995]
[1744634111659,4e-07,84943.0,84942.0,1.12734995]
[1744634112062,4e-07,84943.0,84942.0,1.12234995]
[1744634112290,4e-07,84943.0,84942.0,1.12734995]
[1744634112485,4e-07,84943.0,84942.0,1.13234995]
[1744634112866,4e-07,84943.0,84942.0,1.13670761]
[1744634113373,4e-07,84943.0,84942.0,1.14170761]
[1744634113796,4e-07,84943.0,84942.0,0.37800761]
[1744634114003,0.2354524,84943.0,84942.0,0.02671207]
[1744634114519,0.0470004,84943.0,84942.0,0.25280841]
[1744634114684,4e-07,84943.0,84942.0,0.37864995]
[1744634114864,4e-07,84943.0,84942.0,0.37364995]
[1744634115067,4e-07,84943.0,84942.0,0.36964995]
[1744634115271,4e-07,84943.0,84942.0,0.37364995]
[1744634115491,4e-07,84943.0,84942.0,0.36764995]
[1744634115715,4e-07,84943.0,84942.0,0.36864995]
[1744634115875,4e-07,84943.0,84942.0,0.36464995]
[1744634116078,4e-07,84943.0,84942.0,0.36664995]
[1744634116724,4e-07,84943.0,84942.0,0.01035441]
[1744634117434,4e-07,84943.0,84942.0,0.00935441]
[1744634118028,4e-07,84943.0,84942.0,0.00735441]
[1744634118439,4e-07,84943.0,84942.0,0.24380841]
[1744634118811,4e-07,84943.0,84942.0,0.24280841]
[1744634119821,4e-07,84943.0,84942.0,0.24380841]
[1744634121149,4e-07,84943.0,84942.0,0.24280841]
[1744634121346,4e-07,84943.0,84942.0,0.24380841]
[1744634122604,4e-07,84943.0,84942.0,0.00835441]
[1744634122822,4e-07,84943.0,84942.0,0.001]
[1744634122823,0.2354524,84943.0,84942.0,0.001]
[1744634123226,4e-07,84943.0,84942.0,0.001]
[1744634123388,0.2354524,84943.0,84942.0,0.001]
[1744634123804,4e-07,84943.0,84942.0,0.001]
[1744634124047,0.2354524,84943.0,84942.0,0.001]
[1744634124245,0.2354524,84943.0,84941.0,0.07]
[1744634124603,0.235454,84942.0,84941.0,0.07]
[1744634124805,0.235469,84937.0,84933.0,0.011773]
[1744634125007,0.235482,84932.0,84923.0,0.011775]
[1744634125215,0.011774,84932.0,84929.0,0.011774]
[1744634125416,0.0926,84936.0,84933.0,0.247252]
[1744634125615,0.13956,84939.0,84935.0,0.247247]
[1744634125825,0.235466,84938.0,84935.0,0.247247]
[1744634126024,0.151333,84939.0,84936.0,0.235469]
[1744634126428,0.13956,84939.0,84937.0,0.235468]
[1744634126625,0.235467,84938.0,84935.0,0.247245]
[1744634126915,0.247244,84937.0,84934.0,0.247248]
[1744634127113,0.247244,84936.0,84933.0,0.011773]
[1744634127554,0.011773,84936.0,84933.0,0.247252]
[1744634127757,0.235474,84935.0,84933.0,0.011773]
[1744634127938,0.247247,84935.0,84930.0,0.24726]
[1744634128136,0.247249,84934.0,84931.0,0.011774]
[1744634128797,0.011773,84934.0,84932.0,0.235482]
[1744634128955,0.011774,84930.0,84927.0,0.52405961]
[1744634129276,0.247248,84935.0,84932.0,0.011774]
[1744634129716,0.235466,84938.0,84934.0,0.011773]
[1744634129891,0.13956,84939.0,84937.0,0.235467]
[1744634130095,0.13956,84939.0,84938.0,0.235465]
[1744634130263,0.13956,84939.0,84937.0,0.235468]
[1744634130475,0.13956,84939.0,84936.0,0.247244]
[1744634130669,0.13956,84939.0,84937.0,0.235466]
[1744634131058,0.13956,84939.0,84938.0,0.235465]
[1744634131753,4e-07,84943.0,84942.0,0.235454]
[1744634132123,0.3981204,84950.0,84949.0,0.235435]
[1744634133364,0.13956,84953.0,84952.0,0.235427]
[1744634133550,0.11022,84966.0,84962.0,0.247168]
[1744634133747,0.0001,84966.0,84964.0,0.235393]
[1744634133951,0.0001,84966.0,84965.0,0.12084154]
[1744634134217,0.0001,84966.0,84965.0,0.12319526]
[1744634135066,0.0001,84966.0,84965.0,0.1305475]
[1744634135203,0.0001,84966.0,84965.0,0.12319526]
[1744634135401,5.82e-05,84982.0,84981.0,0.235346]
[1744634136022,5.82e-05,84982.0,84979.0,0.011767]
[1744634136221,0.011767,84981.0,84976.0,0.011768]
[1744634136460,5.82e-05,84982.0,84979.0,0.247118]
[1744634136873,5.82e-05,84982.0,84980.0,0.235348]
[1744634137326,5.82e-05,84982.0,84979.0,0.247118]
[1744634137967,5.82e-05,84982.0,84980.0,0.235348]
[1744634138504,0.2354022,84982.0,84979.0,0.011767]
[1744634138704,0.2471692,84982.0,84979.0,0.011767]
[1744634140403,0.2471692,84982.0,84979.0,0.247118]
[1744634140750,0.2471692,84982.0,84979.0,0.011767]
[1744634140952,0.0118252,84982.0,84979.0,0.247117]
[1744634141162,5.82e-05,84982.0,84980.0,0.235348]
[1744634141400,5.82e-05,84982.0,84981.0,0.235346]
[1744634142583,0.011767,84981.0,84978.0,0.235353]
[1744634142723,0.0118252,84982.0,84979.0,0.247118]
[1744634142923,5.82e-05,84982.0,84980.0,0.235349]
[1744634143328,0.235352,84979.0,84973.0,0.235366]
[1744634143528,0.011767,84980.0,84976.0,0.247128]
[1744634143771,0.247116,84980.0,84977.0,0.235357]
[1744634143985,5.82e-05,84982.0,84976.0,0.011768]
[1744634144186,5.82e-05,84982.0,84981.0,0.235346]
[1744634144444,5.82e-05,84982.0,84979.0,0.247117]
[1744634145636,5.82e-05,84982.0,84980.0,0.235348]
[1744634146646,5.82e-05,84982.0,84981.0,0.235346]
[1744634147011,5.82e-05,84982.0,84981.0,0.35618754]
[1744634147845,0.0118252,84982.0,84979.0,0.011767]
[1744634148051,5.82e-05,84982.0,84981.0,0.235346]
[1744634149908,5.82e-05,84982.0,84980.0,0.235349]
[1744634150548,5.82e-05,84982.0,84971.0,0.247142]
[1744634150797,0.011768,84976.0,84969.0,0.011768]
[1744634150986,0.011768,84975.0,84972.0,0.235369]
[1744634151402,0.247132,84975.0,84971.0,0.24714]
[1744634151678,0.247136,84974.0,84971.0,0.24714]
[1744634151912,0.011768,84974.0,84970.0,0.247144]
[1744634152138,0.011768,84974.0,84971.0,0.235371]
[1744634152348,0.011768,84976.0,84973.0,0.247136]
[1744634152523,0.011767,84977.0,84973.0,0.247136]
[1744634153057,0.011767,84977.0,84974.0,0.247133]
[1744634153190,0.235361,84976.0,84974.0,0.011768]
[1744634153392,0.011767,84977.0,84974.0,0.011768]
[1744634153722,0.011766,84985.0,84981.0,0.235346]
[1744634153923,0.2475324,84983.0,84979.0,0.011767]
[1744634154088,0.235347,84981.0,84979.0,0.011767]
[1744634154293,0.011768,84974.0,84971.0,0.247139]
[1744634154494,0.235361,84976.0,84973.0,0.235367]
[1744634154895,0.247125,84977.0,84974.0,0.235365]
[1744634155121,0.23536,84976.0,84973.0,0.247135]
[1744634155448,0.247125,84977.0,84973.0,0.247135]
[1744634155658,0.0121894,84983.0,84978.0,0.011767]
[1744634155870,0.011767,84980.0,84976.0,0.011768]
[1744634156073,0.2471712,84982.0,84979.0,0.235352]
[1744634156297,0.235347,84981.0,84979.0,0.235352]
[1744634156476,0.235349,84980.0,84978.0,0.011767]
[1744634156835,0.235349,84980.0,84978.0,0.247121]
[1744634157483,0.235349,84980.0,84977.0,0.235355]
[1744634157687,0.235352,84979.0,84977.0,0.235355]
[1744634157888,0.247116,84980.0,84977.0,0.235355]
[1744634158119,0.247116,84980.0,84978.0,0.235353]
[1744634158963,0.011767,84981.0,84978.0,0.235353]
[1744634159147,0.235347,84981.0,84979.0,0.235352]
[1744634159648,0.23535,84980.0,84978.0,0.24712]
[1744634159783,0.23535,84980.0,84978.0,0.011767]
[1744634160356,0.235352,84979.0,84975.0,0.247129]
[1744634160568,0.247119,84979.0,84977.0,0.235356]
[1744634161170,0.247116,84980.0,84977.0,0.247123]
[1744634162043,0.247113,84981.0,84978.0,0.235352]
[1744634162237,0.24056103,84982.0,84979.0,0.235351]
[1744634162558,0.235347,84981.0,84978.0,0.011767]
[1744634162760,0.011768,84976.0,84973.0,0.011768]
[1744634162962,0.011767,84980.0,84975.0,0.011768]
[1744634163162,0.235352,84979.0,84976.0,0.235358]
[1744634163754,0.235352,84979.0,84976.0,0.247126]
[1744634164377,0.247111,84982.0,84979.0,0.235352]
[1744634164584,0.235349,84980.0,84978.0,0.247116]
[1744634165420,0.235349,84980.0,84978.0,0.011767]
[1744634165601,0.235349,84980.0,84977.0,0.247124]